fUST/lending_fUST_20250809
["ID","MTS","AMOUNT","RATE_DAILY","PERIOD"]
[378145368,1754747458377,-460.0,0.00024383,2]
[378145369,1754747458386,-519.3,0.00024383,2]
[378145370,1754747458396,-505.04,0.00024383,2]
[378145371,1754747458406,-460.0,0.00024383,2]
[378145372,1754747458415,-460.0,0.00024383,2]
[378145373,1754747458425,-831.04,0.00024383,2]
[378145374,1754747458434,-460.0,0.00024383,2]
[378145375,1754747458443,-759.18,0.00024383,2]
[378145376,1754747458453,-1151.85,0.00024383,2]
[378145377,1754747458463,-485.21,0.00024383,2]
[378145378,1754747458472,-596.04,0.00024383,2]
[378145379,1754747458482,-1378.28,0.00024383,2]
[378145380,1754747458491,-460.0,0.00024383,2]
[378145381,1754747458500,-1165.64,0.00024383,2]
[378145382,1754747458509,-765.33,0.00024383,2]
[378145383,1754747458518,-331.52761962,0.00024383,2]
[378145384,1754747458528,-460.0,0.00024383,2]
[378145385,1754747458537,-460.0,0.00024383,2]
[378145386,1754747458549,-1113.5,0.00024383,2]
[378145387,1754747458558,-460.0,0.00024383,2]
[378145388,1754747458568,-575.37,0.00024383,2]
[378145389,1754747458577,-460.0,0.00024383,2]
[378145390,1754747458587,-2401.29,0.00024383,2]
[378145391,1754747458596,-460.0,0.00024383,2]
[378145392,1754747458606,-1070.9,0.00024383,2]
[378145393,1754747458615,-460.0,0.00024383,2]
[378145394,1754747458625,-150.0,0.000244,2]
[378145395,1754747458635,-600.25,0.000244,2]
[378145396,1754747458645,-200.0,0.00024411,15]
[378145397,1754747458655,-200.0,0.00024411,15]
[378145398,1754747458664,-200.0,0.00024411,15]
[378145399,1754747458674,-200.0,0.00024411,15]
[378145400,1754747458684,-200.0,0.00024411,15]
[378145401,1754747458694,-200.0,0.00024411,15]
[378145402,1754747458703,-200.0,0.00024411,15]
[378145403,1754747458712,-837.0,0.00024441,2]
[378145404,1754747458721,-1506.0,0.0002445,2]
[378145405,1754747458731,-1100.0,0.000245,4]
[378145406,1754747458740,-1948.81686302,0.00024512,2]
[378145407,1754747458749,-151.0,0.0002454,7]
[378145408,1754747458758,-151.0,0.0002454,7]
[378145409,1754747458768,-837.0,0.0002454,2]
[378145410,1754747458777,-837.0,0.00024648,2]
[378145411,1754747458787,-151.0,0.00024657,7]
[378145412,1754747458796,-586.82,0.00024657,2]
[378145413,1754747458806,-677.9,0.00024657,2]
[378145414,1754747458815,-460.0,0.00024657,2]
[378145415,1754747458825,-518.50656672,0.00024657,2]
[378145416,1754747458835,-460.0,0.00024657,2]
[378145417,1754747458844,-460.0,0.00024657,2]
[378145418,1754747458854,-460.0,0.00024657,2]
[378145419,1754747458863,-460.0,0.00024657,2]
[378145420,1754747458872,-460.0,0.00024657,2]
[378145421,1754747458882,-569.08353206,0.00024657,2]
[378145422,1754747458892,-460.0,0.00024657,2]
[378145423,1754747458901,-564.93,0.00024657,2]
[378145424,1754747458911,-460.0,0.00024657,2]
[378145425,1754747458921,-251.863743,0.00024657,7]
[378145426,1754747458933,-251.863743,0.00024657,7]
[378145427,1754747458942,-460.0,0.00024657,2]
[378145428,1754747458951,-701.21,0.00024657,2]
[378145429,1754747458960,-1334.37,0.00024657,2]
[378145430,1754747458970,-1452.35,0.00024657,2]
[378145431,1754747458979,-803.76,0.00024657,2]
[378145432,1754747458988,-750.06,0.00024657,2]
[378145433,1754747458998,-1574.57,0.00024657,2]
[378145434,1754747459007,-997.08,0.00024657,2]
[378145435,1754747459017,-460.0,0.00024657,2]
[378145436,1754747459026,-460.0,0.00024657,2]
[378145437,1754747459035,-460.0,0.00024657,2]
[378145438,1754747459045,-288.856446,0.00024657,7]
[378145439,1754747459054,-1937.41,0.00024657,2]
[378145440,1754747459064,-288.856446,0.00024657,7]
[378145441,1754747459073,-1416.98,0.00024657,2]
[378145442,1754747459083,-460.0,0.00024657,2]
[378145443,1754747459092,-1425.64,0.00024657,2]
[378145444,1754747459102,-713.03,0.00024657,2]
[378145445,1754747459209,-4434.69,0.00024657,2]
[378145446,1754747459220,-623.12,0.00024657,2]
[378145447,1754747459230,-606.24,0.00024657,2]
[378145448,1754747459239,-460.0,0.00024657,2]
[378145449,1754747459248,-519.3,0.00024657,2]
[378145450,1754747459257,-505.04,0.00024657,2]
[378145451,1754747459267,-487.13639143,0.00024657,2]
[378145452,1754747459276,-460.0,0.00024657,2]
[378145453,1754747459285,-831.04,0.00024657,2]
[378145454,1754747459294,-460.0,0.00024657,2]
[378145455,1754747459304,-759.18,0.00024657,2]
[378145456,1754747459314,-1151.85,0.00024657,2]
[378145457,1754747459323,-485.21,0.00024657,2]
[378145458,1754747459332,-596.04,0.00024657,2]
[378145459,1754747459342,-1378.28,0.00024657,2]
[378145460,1754747459351,-410.77880587,0.00024657,2]
[378145461,1754747459361,-1165.64,0.00024657,2]
[378145462,1754747459370,-765.33,0.00024657,2]
[378145463,1754747459380,-460.0,0.00024657,2]
[378145464,1754747459390,-460.0,0.00024657,2]
[378145465,1754747459399,-1113.5,0.00024657,2]
[378145466,1754747459408,-460.0,0.00024657,2]
[378145467,1754747459417,-575.37,0.00024657,2]
[378145468,1754747459426,-460.0,0.00024657,2]
[378145469,1754747459435,-2401.29,0.00024657,2]
[378145470,1754747459444,-460.0,0.00024657,2]
[378145471,1754747459453,-2229.05,0.00024657,4]
[378145472,1754747459462,-1070.9,0.00024657,2]
[378145473,1754747459471,-460.0,0.00024657,2]
[378145474,1754747459480,-200.0,0.00024658,15]
[378145475,1754747459489,-500.0,0.00024658,2]
[378145476,1754747459498,-517.0,0.00024658,2]
[378145477,1754747459508,-3000.0,0.00024664,2]
[378145478,1754747459517,-160.0,0.00024668,3]
[378145479,1754747459526,-1052.13338448,0.00024706,2]
[378145480,1754747459535,-460.0,0.00024744,2]
[378145481,1754747459546,-837.0,0.00024792,2]
[378145482,1754747459555,-4421.0,0.00024793,2]
[378145483,1754747459564,-9393.90266385,0.000248,2]
[378145484,1754747459573,-37534.1244684,0.000248,2]
[378145485,1754747459583,-151.0,0.00024814,7]
[378145486,1754747459592,-837.0,0.00024814,2]
[378145487,1754747459601,-741.81680516,0.00024816,2]
[378145488,1754747459610,-450.0,0.00024875,2]
[378145489,1754747459619,-605.8719077,0.00024889,2]
[378145490,1754747459628,-307.096107,0.00024889,2]
[378145491,1754747459637,-837.0,0.00024896,2]
[378145492,1754747459647,-161.776111,0.000249,7]
[378145493,1754747459656,-161.776111,0.000249,7]
[378145494,1754747459666,-500.0,0.000249,2]
[378145495,1754747459675,-151.0,0.000249,7]
[378145496,1754747459684,-198.90769,0.000249,7]
[378145497,1754747459693,-198.90769,0.000249,7]
[378145498,1754747459702,-151.0,0.000249,7]
[378145499,1754747459711,-163.20398,0.000249,7]
[378145500,1754747459720,-163.20398,0.000249,7]
[378145501,1754747459730,-328.251835,0.000249,7]
[378145502,1754747459739,-328.251835,0.000249,7]
[378145503,1754747459748,-153.215366,0.000249,7]
[378145504,1754747459757,-151.0,0.000249,7]
[378145505,1754747459766,-151.0,0.000249,7]
[378145506,1754747459775,-151.0,0.000249,7]
[378145507,1754747459785,-151.0,0.000249,7]
[378145508,1754747459794,-457.995757,0.000249,7]
[378145509,1754747459803,-457.995757,0.000249,7]
[378145510,1754747459813,-151.0,0.000249,7]
[378145511,1754747459822,-151.0,0.000249,7]
[378145512,1754747459831,-151.0,0.000249,7]
[378145513,1754747459841,-151.0,0.000249,7]
[378145514,1754747459850,-423.566582,0.000249,7]
[378145515,1754747459859,-423.566582,0.000249,7]
[378145516,1754747459869,-151.66253,0.000249,7]
[378145517,1754747459878,-151.66253,0.000249,7]
[378145518,1754747459888,-151.0,0.000249,7]
[378145519,1754747459897,-151.0,0.000249,7]
[378145520,1754747459906,-251.863743,0.000249,7]
[378145521,1754747459915,-251.863743,0.000249,7]
[378145522,1754747459925,-151.0,0.000249,7]
[378145523,1754747459934,-151.0,0.000249,7]
[378145524,1754747459943,-151.0,0.000249,7]
[378145525,1754747459953,-288.856446,0.000249,7]
[378145526,1754747459962,-288.856446,0.000249,7]
[378145527,1754747459972,-29098.6204215,0.000249,2]
[378145528,1754747460020,-5329.5252097,0.000249,2]
[378145529,1754747460131,-460.0,0.00021917,2]
[378145530,1754747460141,-460.0,0.00022191,2]
[378145531,1754747460151,-460.0,0.00022465,2]
[378145532,1754747460162,-460.0,0.00022739,2]
[378145533,1754747460172,-460.0,0.00023013,2]
[378145534,1754747460181,-151.0,0.00023174,2]
[378145535,1754747460191,-250.0,0.00023174,2]
[378145536,1754747460200,-151.0,0.00023174,2]
[378145537,1754747460210,-322.99648402,0.00023287,2]
[378145538,1754747460220,-1731.6080037,0.000249,2]
[378145539,1754747460237,-460.0,0.00021917,2]
[378145540,1754747460247,-38441.35978112,0.000249,2]
[378145541,1754747460408,-1134.70122693,0.00021907,10]
[378145542,1754747460771,-515.54877307,0.00021907,10]
[378145543,1754747460780,-1628.55580213,0.00021917,2]
[378145544,1754747460790,-460.0,0.00021917,2]
[378145545,1754747460799,-460.0,0.00021917,2]
[378145546,1754747460808,-460.0,0.00021917,2]
[378145547,1754747460820,-460.0,0.00022191,2]
[378145548,1754747460830,-460.0,0.00022465,2]
[378145549,1754747460839,-460.0,0.00022739,2]
[378145550,1754747460848,-473.66842586,0.00023013,2]
[378145551,1754747460858,-129.28863062,0.00023174,2]
[378145554,1754747490668,3128.72439169,0.000199,2]
[378145555,1754747514106,1309.11,0.00030137,120]
[378145557,1754747682037,3205.88520973,0.000199,2]
[378145558,1754747831403,6097.607923,0.00020708,2]
[378145559,1754747831427,12500.0,0.00020708,2]
[378145560,1754747831450,6302.392077,0.00020708,2]
[378145561,1754747870068,3879.5535516,0.000199,2]
[378145562,1754747873677,163.614474,0.00020709,2]
[378145563,1754748056642,2154.4398974,0.000199,2]
[378145564,1754748056671,1595.79520248,0.000199,2]
[378145568,1754748207888,333.887474,0.00013699,2]
[378145569,1754748208119,333.887474,0.00020187,2]
[378145571,1754748250439,3959.4575514,0.000199,2]
[378145575,1754748387084,150.0,0.000189,2]
[378145576,1754748448570,3603.8713684,0.000199,2]
[378145683,1754748636496,2523.10092972,0.000199,2]
[378145684,1754748636524,960.64139326,0.000199,2]
[378145690,1754748636733,-165.95780041,0.00021555,2]
[378145691,1754748636743,-1229.31856592,0.00021605,2]
[378145692,1754748636756,-475.89618924,0.00021605,2]
[378145693,1754748636766,-160.0,0.00021654,2]
[378145694,1754748636776,-3483.74232274,0.00021655,2]
[378145695,1754748636786,-494.54453678,0.00021667,2]
[378145703,1754748637000,-1252.83170865,0.00021673,2]
[378145704,1754748637021,-1200.0,0.000217,2]
[378145705,1754748637033,-157.0,0.00021701,2]
[378145706,1754748637043,-300.0,0.00021701,2]
[378145707,1754748637055,-300.0,0.00021701,2]
[378145708,1754748637065,-1200.0,0.00021702,2]
[378145709,1754748637075,-50000.0,0.00021703,2]
[378145710,1754748637085,-252.98591811,0.00021703,2]
[378145711,1754748637095,-1375.21,0.00021705,10]
[378145712,1754748637104,-1146.01,0.00021705,10]
[378145713,1754748637113,-387.98,0.00021706,3]
[378145714,1754748637124,-500.0,0.00021714,2]
[378145715,1754748637133,-500.0,0.00021714,2]
[378145716,1754748637142,-168.67743248,0.00021714,2]
[378145717,1754748637152,-500.0,0.00021714,2]
[378145718,1754748637161,-500.0,0.00021714,2]
[378145719,1754748637171,-500.0,0.00021714,2]
[378145720,1754748637180,-500.0,0.00021714,2]
[378145721,1754748637190,-500.0,0.00021714,2]
[378145722,1754748637199,-349.05770188,0.00021714,2]
[378145723,1754748637208,-500.0,0.00021714,2]
[378145724,1754748637218,-500.0,0.00021714,2]
[378145725,1754748637227,-500.0,0.00021714,2]
[378145726,1754748637237,-500.0,0.00021714,2]
[378145727,1754748637246,-500.0,0.00021714,2]
[378145728,1754748637255,-500.0,0.00021714,2]
[378145729,1754748637264,-500.0,0.00021714,2]
[378145730,1754748637273,-500.0,0.00021714,2]
[378145731,1754748637282,-500.0,0.00021714,2]
[378145732,1754748637291,-500.0,0.00021714,2]
[378145733,1754748637301,-500.0,0.00021714,2]
[378145734,1754748637311,-500.0,0.00021714,2]
[378145736,1754748637320,-500.0,0.00021714,2]
[378145737,1754748637329,-500.0,0.00021714,2]
[378145738,1754748637339,-196.5,0.00021714,2]
[378145739,1754748637350,-500.0,0.00021714,2]
[378145740,1754748637360,-500.0,0.00021714,2]
[378145741,1754748637369,-500.0,0.00021714,2]
[378145742,1754748637379,-500.0,0.00021714,2]
[378145743,1754748637388,-500.0,0.00021714,2]
[378145744,1754748637398,-500.0,0.00021714,2]
[378145745,1754748637408,-463.23364373,0.00021714,2]
[378145747,1754748637418,-500.0,0.00021714,2]
[378145749,1754748637427,-500.0,0.00021714,2]
[378145751,1754748637436,-500.0,0.00021714,2]
[378145752,1754748637446,-500.0,0.00021714,2]
[378145753,1754748637455,-500.0,0.00021714,2]
[378145754,1754748637465,-500.0,0.00021714,2]
[378145755,1754748637476,-500.0,0.00021714,2]
[378145756,1754748637486,-500.0,0.00021714,2]
[378145757,1754748637497,-500.0,0.00021714,2]
[378145758,1754748637507,-637.13315467,0.00021714,2]
[378145759,1754748637517,-500.0,0.00021714,2]
[378145760,1754748637527,-500.0,0.00021714,2]
[378145761,1754748637537,-500.0,0.00021714,2]
[378145762,1754748637547,-500.0,0.00021714,2]
[378145763,1754748637558,-500.0,0.00021714,2]
[378145764,1754748637567,-500.0,0.00021714,2]
[378145765,1754748637577,-500.0,0.00021714,2]
[378145766,1754748637587,-500.0,0.00021714,2]
[378145767,1754748637597,-500.0,0.00021714,2]
[378145768,1754748637607,-500.0,0.00021714,2]
[378145769,1754748637616,-500.0,0.00021714,2]
[378145770,1754748637625,-500.0,0.00021714,2]
[378145772,1754748637635,-442.60919343,0.00021714,2]
[378145774,1754748637643,-500.0,0.00021714,2]
[378145775,1754748637652,-500.0,0.00021714,2]
[378145777,1754748637662,-500.0,0.00021714,2]
[378145779,1754748637671,-500.0,0.00021714,2]
[378145781,1754748637680,-537.5375458,0.00021714,2]
[378145783,1754748637690,-500.0,0.00021714,2]
[378145784,1754748637699,-500.0,0.00021714,2]
[378145786,1754748637709,-500.0,0.00021714,2]
[378145788,1754748637719,-500.0,0.00021714,2]
[378145790,1754748637729,-500.0,0.00021714,2]
[378145792,1754748637739,-500.0,0.00021714,2]
[378145793,1754748637748,-500.0,0.00021714,2]
[378145794,1754748637757,-500.0,0.00021714,2]
[378145795,1754748637766,-650.0,0.00021714,2]
[378145796,1754748637776,-500.0,0.00021714,2]
[378145797,1754748637785,-500.0,0.00021714,2]
[378145798,1754748637794,-500.0,0.00021714,2]
[378145799,1754748637803,-500.0,0.00021714,2]
[378145800,1754748637813,-500.0,0.00021714,2]
[378145801,1754748637823,-500.0,0.00021714,2]
[378145802,1754748637832,-633.83578345,0.00021715,2]
[378145803,1754748637841,-823.97462757,0.00021715,2]
[378145804,1754748637851,-823.97462757,0.00021715,2]
[378145805,1754748637860,-823.97462757,0.00021715,2]
[378145807,1754748637870,-823.97462757,0.00021715,2]
[378145808,1754748637879,-823.97462757,0.00021715,2]
[378145809,1754748637889,-823.97462757,0.00021715,2]
[378145810,1754748637898,-823.97462757,0.00021715,2]
[378145811,1754748637907,-823.97462757,0.00021715,2]
[378145812,1754748637916,-823.97462757,0.00021715,2]
[378145813,1754748637926,-823.97462757,0.00021715,2]
[378145814,1754748637935,-823.97462757,0.00021715,2]
[378145815,1754748637944,-823.97462757,0.00021715,2]
[378145816,1754748637956,-823.97462757,0.00021715,2]
[378145817,1754748637966,-823.97462757,0.00021715,2]
[378145818,1754748637976,-823.97462757,0.00021715,2]
[378145819,1754748637986,-823.97462757,0.00021715,2]
[378145820,1754748637997,-865.17335894,0.00021715,2]
[378145821,1754748638006,-865.17335894,0.00021715,2]
[378145822,1754748638016,-865.17335894,0.00021715,2]
[378145823,1754748638025,-865.17335894,0.00021715,2]
[378145824,1754748638035,-865.17335894,0.00021715,2]
[378145825,1754748638046,-865.17335894,0.00021715,2]
[378145826,1754748638055,-865.17335894,0.00021715,2]
[378145827,1754748638064,-865.17335894,0.00021715,2]
[378145828,1754748638073,-865.17335894,0.00021715,2]
[378145829,1754748638083,-1228.54616973,0.00021715,2]
[378145830,1754748638092,-88797.31591482,0.00021716,2]
[378145831,1754748638105,-746.52421061,0.00021716,2]
[378145832,1754748638117,-1151.46695862,0.00021716,2]
[378145833,1754748638128,-1777.76819494,0.00021716,2]
[378145834,1754748638140,-717.72688854,0.00021716,2]
[378145835,1754748638248,-276809.19783247,0.00021716,2]
[378145836,1754748638258,-500.0,0.00021773,2]
[378145837,1754748638267,-500.0,0.00021773,2]
[378145838,1754748638278,-500.0,0.00021773,2]
[378145839,1754748638287,-500.0,0.00021773,2]
[378145840,1754748638296,-500.0,0.00021773,2]
[378145841,1754748638306,-504.93492331,0.00021773,2]
[378145842,1754748638315,-500.0,0.00021773,2]
[378145843,1754748638324,-501.34003682,0.00021773,2]
[378145844,1754748638334,-500.0,0.00021773,2]
[378145845,1754748638344,-500.0,0.00021773,2]
[378145846,1754748638354,-500.0,0.00021773,2]
[378145847,1754748638363,-160.10160444,0.00021773,2]
[378145848,1754748638372,-500.0,0.00021773,2]
[378145849,1754748638381,-505.48273847,0.00021773,2]
[378145850,1754748638390,-500.0,0.00021773,2]
[378145851,1754748638399,-1252.83170861,0.00021778,2]
[378145852,1754748638409,-1252.83170861,0.00021882,2]
[378145853,1754748638419,-460.0,0.00021917,2]
[378145854,1754748638428,-463.07916972,0.00021917,2]
[378145855,1754748638438,-460.0,0.00021917,2]
[378145856,1754748638447,-461.73826329,0.00021917,2]
[378145857,1754748638456,-460.0,0.00021917,2]
[378145858,1754748638465,-460.0,0.00021917,2]
[378145859,1754748638475,-2000.0,0.00021917,2]
[378145860,1754748638485,-2000.0,0.00021917,2]
[378145861,1754748638494,-2000.0,0.00021917,2]
[378145862,1754748638503,-2000.0,0.00021917,2]
[378145863,1754748638513,-2000.0,0.00021917,2]
[378145864,1754748638523,-2000.0,0.00021917,2]
[378145865,1754748638532,-2000.0,0.00021917,2]
[378145866,1754748638542,-2000.0,0.00021917,2]
[378145867,1754748638551,-2000.0,0.00021917,2]
[378145868,1754748638560,-2000.0,0.00021917,2]
[378145869,1754748638570,-2000.0,0.00021917,2]
[378145870,1754748638580,-2000.0,0.00021917,2]
[378145871,1754748638590,-2000.0,0.00021917,2]
[378145872,1754748638599,-2000.0,0.00021917,2]
[378145873,1754748638608,-2000.0,0.00021917,2]
[378145874,1754748638618,-2000.0,0.00021917,2]
[378145875,1754748638627,-2000.0,0.00021917,2]
[378145876,1754748638636,-2000.0,0.00021917,2]
[378145877,1754748638646,-2000.0,0.00021917,2]
[378145878,1754748638655,-2000.0,0.00021917,2]
[378145879,1754748638665,-2000.0,0.00021917,2]
[378145880,1754748638674,-548.258,0.00021917,2]
[378145881,1754748638683,-460.0,0.00021917,2]
[378145882,1754748638693,-460.0,0.00021917,2]
[378145883,1754748638702,-461.48068918,0.00021917,2]
[378145884,1754748638712,-460.0,0.00021917,2]
[378145885,1754748638722,-460.0,0.00021917,2]
[378145886,1754748638732,-460.0,0.00021917,2]
[378145887,1754748638741,-332.80172595,0.00021917,2]
[378145888,1754748638751,-460.0,0.00021917,2]
[378145889,1754748638761,-460.0,0.00021917,2]
[378145890,1754748638771,-460.0,0.00021917,2]
[378145891,1754748638782,-460.0,0.00021917,2]
[378145892,1754748638791,-460.0,0.00021917,2]
[378145893,1754748638802,-460.0,0.00021917,2]
[378145894,1754748638812,-460.99534196,0.00021917,2]
[378145895,1754748638821,-460.0,0.00021917,2]
[378145896,1754748638830,-460.0,0.00021917,2]
[378145897,1754748638840,-460.0,0.00021917,2]
[378145898,1754748638847,-460.0,0.00021917,2]
[378145899,1754748638857,-464.67179982,0.00021917,2]
[378145900,1754748638866,-460.0,0.00021917,2]
[378145901,1754748638875,-400.06360529,0.00021917,2]
[378145902,1754748638885,-460.0,0.00021917,2]
[378145903,1754748638895,-440.85262255,0.00021917,2]
[378145904,1754748638908,-460.0,0.00021917,2]
[378145905,1754748638917,-460.0,0.00021917,2]
[378145906,1754748638927,-515.37607058,0.00021917,2]
[378145907,1754748638936,-215.94527272,0.00021917,2]
[378145908,1754748638946,-327.73726179,0.00021917,2]
[378145909,1754748638957,-460.0,0.00021917,2]
[378145910,1754748638967,-460.0,0.00021917,2]
[378145911,1754748638976,-460.0,0.00021917,2]
[378145912,1754748638986,-460.0,0.00021917,2]
[378145913,1754748638995,-460.0,0.00021917,2]
[378145914,1754748639005,-460.0,0.00021917,2]
[378145915,1754748639015,-460.0,0.00021917,2]
[378145916,1754748639024,-150.88458714,0.00021917,2]
[378145917,1754748639035,-532.60081503,0.00021917,2]
[378145918,1754748639048,-460.0,0.00021917,2]
[378145919,1754748639057,-460.0,0.00021917,2]
[378145920,1754748639067,-551.4,0.00021917,2]
[378145921,1754748639076,-155.90322173,0.00021917,2]
[378145922,1754748639086,-460.0,0.00021917,2]
[378145923,1754748639095,-460.0,0.00021917,2]
[378145924,1754748639105,-460.0,0.00021917,2]
[378145925,1754748639114,-460.0,0.00021917,2]
[378145926,1754748639123,-464.71121682,0.00021917,2]
[378145927,1754748639133,-460.0,0.00021917,2]
[378145928,1754748639142,-460.0,0.00021917,2]
[378145929,1754748639152,-460.0,0.00021917,2]
[378145930,1754748639161,-460.0,0.00021917,2]
[378145931,1754748639170,-460.0,0.00021917,2]
[378145932,1754748639180,-460.0,0.00021917,2]
[378145933,1754748639190,-460.0,0.00021917,2]
[378145934,1754748639199,-460.0,0.00021917,2]
[378145935,1754748639209,-460.0,0.00021917,2]
[378145936,1754748639219,-467.93147939,0.00021917,2]
[378145937,1754748639229,-460.0,0.00021917,2]
[378145938,1754748639238,-460.0,0.00021917,2]
[378145939,1754748639249,-477.31128985,0.00021917,2]
[378145940,1754748639258,-460.0,0.00021917,2]
[378145941,1754748639267,-460.0,0.00021917,2]
[378145942,1754748639276,-460.0,0.00021917,2]
[378145943,1754748639285,-460.0,0.00021917,2]
[378145944,1754748639295,-460.0,0.00021917,2]
[378145945,1754748639304,-164.63,0.00021917,2]
[378145946,1754748639314,-460.0,0.00021917,2]
[378145947,1754748639323,-460.0,0.00021917,2]
[378145948,1754748639333,-460.0,0.00021917,2]
[378145949,1754748639342,-460.0,0.00021917,2]
[378145950,1754748639352,-460.0,0.00021917,2]
[378145951,1754748639361,-460.0,0.00021917,2]
[378145952,1754748639370,-500.0,0.00021917,2]
[378145953,1754748639379,-460.0,0.00021917,2]
[378145954,1754748639388,-460.0,0.00021917,2]
[378145955,1754748639398,-460.0,0.00021917,2]
[378145956,1754748639407,-460.0,0.00021917,2]
[378145957,1754748639416,-467.87400313,0.00021917,2]
[378145958,1754748639427,-460.0,0.00021917,2]
[378145959,1754748639436,-315.56433102,0.00021917,2]
[378145960,1754748639446,-177.79741401,0.00021917,2]
[378145961,1754748639456,-460.0,0.00021917,2]
[378145963,1754748639465,-551.99432026,0.00021917,2]
[378145964,1754748639475,-460.0,0.00021917,2]
[378145965,1754748639485,-460.0,0.00021917,2]
[378145966,1754748639495,-464.07737173,0.00021917,2]
[378145968,1754748639505,-460.0,0.00021917,2]
[378145969,1754748639515,-460.0,0.00021917,2]
[378145970,1754748639525,-460.0,0.00021917,2]
[378145971,1754748639535,-460.0,0.00021917,2]
[378145972,1754748639544,-460.0,0.00021917,2]
[378145973,1754748639554,-460.0,0.00021917,2]
[378145974,1754748639564,-460.0,0.00021917,2]
[378145975,1754748639574,-460.0,0.00021917,2]
[378145976,1754748639584,-460.0,0.00021917,2]
[378145977,1754748639594,-460.0,0.00021917,2]
[378145978,1754748639606,-621.41,0.00021917,2]
[378145979,1754748639615,-460.0,0.00021917,2]
[378145980,1754748639625,-460.0,0.00021917,2]
[378145981,1754748639634,-460.0,0.00021917,2]
[378145982,1754748639644,-460.0,0.00021917,2]
[378145983,1754748639653,-460.0,0.00021917,2]
[378145984,1754748639663,-460.0,0.00021917,2]
[378145985,1754748639672,-462.95960453,0.00021917,2]
[378145986,1754748639681,-461.15020137,0.00021917,2]
[378145987,1754748639691,-460.0,0.00021917,2]
[378145988,1754748639700,-460.0,0.00021917,2]
[378145989,1754748639709,-460.0,0.00021917,2]
[378145990,1754748639719,-460.0,0.00021917,2]
[378145991,1754748639729,-460.0,0.00021917,2]
[378145992,1754748639738,-460.0,0.00021917,2]
[378145993,1754748639748,-460.0,0.00021917,2]
[378145994,1754748639758,-460.0,0.00021917,2]
[378145995,1754748639767,-460.50200028,0.00021917,2]
[378145997,1754748639777,-460.0,0.00021917,2]
[378145999,1754748639787,-467.37402477,0.00021917,2]
[378146000,1754748639797,-460.0,0.00021917,2]
[378146002,1754748639807,-460.0,0.00021917,2]
[378146003,1754748639817,-460.0,0.00021917,2]
[378146004,1754748639826,-460.0,0.00021917,2]
[378146005,1754748639836,-460.0,0.00021917,2]
[378146006,1754748639847,-460.0,0.00021917,2]
[378146007,1754748639860,-460.0,0.00021917,2]
[378146008,1754748639871,-504.87696158,0.00021917,2]
[378146009,1754748639881,-460.0,0.00021917,2]
[378146010,1754748639891,-319.52906246,0.00021917,2]
[378146011,1754748639901,-466.73462039,0.00021917,2]
[378146012,1754748639911,-203.45292445,0.00021917,2]
[378146013,1754748639921,-460.0,0.00021917,2]
[378146014,1754748639931,-460.0,0.00021917,2]
[378146015,1754748639941,-460.0,0.00021917,2]